[Event "Titled Tuesday Blitz May 9 Late 2023"]
[White "Rorrer, Grayson"]
[Black "Kleiman, Jake"]
[WhiteFideId "30944996"]
[BlackFideId "2020041"]
[WhiteElo "2200"]
[BlackElo "2604"]
[Result "0-1"]
[Round "09"]
[TimeControl "180+2"]
[Date "2023.05.09"]
[WhiteClock "0:00:00"]
[BlackClock "0:00:06"]

1. d4 {[%clk 0:02:52]}  Nf6 {[%clk 0:02:59]} 2. Nc3 {[%clk 0:02:52]}  d5 {[%clk 0:02:57]} 3. Bf4 {[%clk 0:02:52]}  e6 {[%clk 0:02:55]} 4. e3 {[%clk 0:02:52]}  Bd6 {[%clk 0:02:56]} 5. Bxd6 {[%clk 0:02:50]}  Qxd6 {[%clk 0:02:55]} 6. Bd3 {[%clk 0:02:49]}  O-O {[%clk 0:02:54]} 7. Nf3 {[%clk 0:02:50]}  c5 {[%clk 0:02:54]} 8. O-O {[%clk 0:02:50]}  b6 {[%clk 0:02:54]} 9. Ne5 {[%clk 0:02:48]}  Ba6 {[%clk 0:02:53]} 10. Nb5 {[%clk 0:02:45]}  Bxb5 {[%clk 0:02:36]} 11. Bxb5 {[%clk 0:02:46]}  Nfd7 {[%clk 0:02:29]} 12. f4 {[%clk 0:02:39]}  f6 {[%clk 0:02:19]} 13. Nf3 {[%clk 0:02:30]}  Nc6 {[%clk 0:02:15]} 14. c3 {[%clk 0:02:05]}  Rad8 {[%clk 0:02:13]} 15. a4 {[%clk 0:01:57]}  e5 {[%clk 0:02:03]} 16. fxe5 {[%clk 0:01:37]}  fxe5 {[%clk 0:02:04]} 17. e4 {[%clk 0:01:15]}  exd4 {[%clk 0:01:47]} 18. exd5 {[%clk 0:01:11]}  Qxd5 {[%clk 0:01:41]} 19. Bxc6 {[%clk 0:01:02]}  Qxc6 {[%clk 0:01:41]} 20. cxd4 {[%clk 0:01:02]}  c4 {[%clk 0:01:12]} 21. Qc2 {[%clk 0:00:56]}  Qd5 {[%clk 0:01:10]} 22. Rae1 {[%clk 0:00:50]}  a6 {[%clk 0:01:03]} 23. Re7 {[%clk 0:00:41]}  b5 {[%clk 0:01:00]} 24. axb5 {[%clk 0:00:41]}  axb5 {[%clk 0:01:00]} 25. Qe2 {[%clk 0:00:38]}  h6 {[%clk 0:00:52]} 26. Re1 {[%clk 0:00:20]}  Rc8 {[%clk 0:00:37]} 27. Qe3 {[%clk 0:00:19]}  b4 {[%clk 0:00:29]} 28. Nh4 {[%clk 0:00:04]}  Rc6 {[%clk 0:00:14]} 29. Qg3 {[%clk 0:00:02]}  Rf7 {[%clk 0:00:10]} 30. Re8+ {[%clk 0:00:01]}  Nf8 {[%clk 0:00:10]} 31. Ng6 {[%clk 0:00:01]}  Rcf6 {[%clk 0:00:08]} 32. Ne7+ {[%clk 0:00:01]}  Rxe7 {[%clk 0:00:09]} 33. R8xe7 {[%clk 0:00:02]}  Rg6 {[%clk 0:00:08]} 34. Qf2 {[%clk 0:00:02]}  c3 {[%clk 0:00:07]} 35. Re8 {[%clk 0:00:03]}  Qd6 {[%clk 0:00:05]} 36. bxc3 {[%clk 0:00:00]}  bxc3 {[%clk 0:00:06]} 0-1


[Site "https://www.chess.com"]

[Event "Titled Tuesday Blitz May 9 Late 2023"]
[White "Ismagilov, Damir"]
[Black "Bryakin, Mikhail"]
[WhiteFideId "34199982"]
[BlackFideId "4165314"]
[WhiteElo "2143"]
[BlackElo "2467"]
[Result "1-0"]
[Round "09"]
[TimeControl "180+2"]
[Date "2023.05.09"]
[WhiteClock "0:00:19"]
[BlackClock "0:00:07"]

1. f4 {[%clk 0:02:56]}  g5 {[%clk 0:02:56]} 2. fxg5 {[%clk 0:02:55]}  e5 {[%clk 0:02:56]} 3. d4 {[%clk 0:02:53]}  e4 {[%clk 0:02:53]} 4. d5 {[%clk 0:02:49]}  Bg7 {[%clk 0:02:51]} 5. Nc3 {[%clk 0:02:40]}  Qe7 {[%clk 0:02:51]} 6. Nh3 {[%clk 0:02:36]}  Na6 {[%clk 0:02:47]} 7. g3 {[%clk 0:02:26]}  d6 {[%clk 0:02:43]} 8. Bg2 {[%clk 0:02:25]}  Nc5 {[%clk 0:02:38]} 9. O-O {[%clk 0:02:23]}  a5 {[%clk 0:02:39]} 10. Nf4 {[%clk 0:02:22]}  Bd7 {[%clk 0:02:37]} 11. Nh5 {[%clk 0:02:17]}  Be5 {[%clk 0:02:25]} 12. Nxe4 {[%clk 0:02:12]}  Nxe4 {[%clk 0:02:25]} 13. Bxe4 {[%clk 0:02:13]}  O-O-O {[%clk 0:02:24]} 14. Qd3 {[%clk 0:02:04]}  f6 {[%clk 0:02:23]} 15. gxf6 {[%clk 0:01:45]}  Nxf6 {[%clk 0:02:24]} 16. Bg5 {[%clk 0:01:42]}  Rdf8 {[%clk 0:02:23]} 17. Bf5 {[%clk 0:01:37]}  Bxf5 {[%clk 0:00:52]} 18. Qxf5+ {[%clk 0:01:36]}  Kb8 {[%clk 0:00:52]} 19. Nxf6 {[%clk 0:01:31]}  Ka8 {[%clk 0:00:48]} 20. Bh4 {[%clk 0:01:11]}  Bxb2 {[%clk 0:00:48]} 21. Rab1 {[%clk 0:01:07]}  Qe3+ {[%clk 0:00:44]} 22. Kh1 {[%clk 0:01:01]}  Be5 {[%clk 0:00:33]} 23. Qd3 {[%clk 0:00:57]}  Qa7 {[%clk 0:00:19]} 24. Nd7 {[%clk 0:00:53]}  Rxf1+ {[%clk 0:00:19]} 25. Rxf1 {[%clk 0:00:53]}  Bb2 {[%clk 0:00:20]} 26. Bf6 {[%clk 0:00:42]}  Bxf6 {[%clk 0:00:20]} 27. Rxf6 {[%clk 0:00:43]}  Re8 {[%clk 0:00:20]} 28. Rf8 {[%clk 0:00:39]}  Rxf8 {[%clk 0:00:20]} 29. Nxf8 {[%clk 0:00:39]}  Qf2 {[%clk 0:00:20]} 30. Qf3 {[%clk 0:00:35]}  Qe1+ {[%clk 0:00:20]} 31. Kg2 {[%clk 0:00:36]}  Qa1 {[%clk 0:00:19]} 32. Ne6 {[%clk 0:00:36]}  Qxa2 {[%clk 0:00:18]} 33. Nxc7+ {[%clk 0:00:35]}  Ka7 {[%clk 0:00:17]} 34. Nb5+ {[%clk 0:00:34]}  Kb6 {[%clk 0:00:18]} 35. Nxd6 {[%clk 0:00:34]}  Qxc2 {[%clk 0:00:17]} 36. Qe3+ {[%clk 0:00:32]}  Ka6 {[%clk 0:00:07]} 37. Qd3+ {[%clk 0:00:27]}  Qxd3 {[%clk 0:00:08]} 38. exd3 {[%clk 0:00:28]}  b5 {[%clk 0:00:09]} 39. Ne4 {[%clk 0:00:25]}  a4 {[%clk 0:00:09]} 40. d6 {[%clk 0:00:25]}  Kb6 {[%clk 0:00:10]} 41. Nc3 {[%clk 0:00:23]}  Kc6 {[%clk 0:00:08]} 42. d7 {[%clk 0:00:22]}  Kxd7 {[%clk 0:00:08]} 43. Nxb5 {[%clk 0:00:22]}  Kc6 {[%clk 0:00:09]} 44. Na3 {[%clk 0:00:20]}  Kc5 {[%clk 0:00:09]} 45. Kf3 {[%clk 0:00:20]}  Kb4 {[%clk 0:00:10]} 46. Nc4 {[%clk 0:00:19]}  Kc3 {[%clk 0:00:07]} 47. Ke4 {[%clk 0:00:19]}  h6 {[%clk 0:00:07]} 48. g4 {[%clk 0:00:19]}  a3 {[%clk 0:00:07]} 49. Nxa3 {[%clk 0:00:19]}  Kb4 {[%clk 0:00:07]} 50. d4 {[%clk 0:00:19]} 1-0


[Site "https://www.chess.com"]

[Event "Titled Tuesday Blitz May 9 Late 2023"]
[White "Kucuksari, Kaan"]
[Black "Bayo Milagro, Alvaro"]
[WhiteFideId "6380166"]
[BlackFideId "22275240"]
[WhiteElo "2364"]
[BlackElo "2270"]
[Result "0-1"]
[Round "09"]
[TimeControl "180+2"]
[Date "2023.05.09"]
[WhiteClock "0:00:07"]
[BlackClock "0:00:07"]

1. e4 {[%clk 0:02:58]}  e5 {[%clk 0:03:00]} 2. Nf3 {[%clk 0:02:57]}  Nc6 {[%clk 0:03:00]} 3. Bb5 {[%clk 0:02:54]}  Bc5 {[%clk 0:02:56]} 4. O-O {[%clk 0:02:52]}  Nd4 {[%clk 0:02:56]} 5. Nxd4 {[%clk 0:02:48]}  Bxd4 {[%clk 0:02:57]} 6. c3 {[%clk 0:02:48]}  Bb6 {[%clk 0:02:57]} 7. d4 {[%clk 0:02:49]}  c6 {[%clk 0:02:58]} 8. Bc4 {[%clk 0:02:48]}  d6 {[%clk 0:02:58]} 9. Qf3 {[%clk 0:02:40]}  Qf6 {[%clk 0:02:47]} 10. Qg3 {[%clk 0:02:36]}  h6 {[%clk 0:02:42]} 11. dxe5 {[%clk 0:02:32]}  dxe5 {[%clk 0:02:40]} 12. Be3 {[%clk 0:02:31]}  Ne7 {[%clk 0:02:38]} 13. Nd2 {[%clk 0:02:31]}  O-O {[%clk 0:02:36]} 14. Nf3 {[%clk 0:02:30]}  Ng6 {[%clk 0:02:34]} 15. Rad1 {[%clk 0:02:28]}  Be6 {[%clk 0:02:02]} 16. Rd6 {[%clk 0:02:27]}  Bc7 {[%clk 0:01:57]} 17. Rxe6 {[%clk 0:02:24]}  fxe6 {[%clk 0:01:57]} 18. Qg4 {[%clk 0:02:20]}  Rfe8 {[%clk 0:01:53]} 19. h4 {[%clk 0:02:18]}  Bb6 {[%clk 0:01:38]} 20. h5 {[%clk 0:02:18]}  Nf8 {[%clk 0:01:16]} 21. Bxb6 {[%clk 0:02:06]}  axb6 {[%clk 0:01:16]} 22. a3 {[%clk 0:02:07]}  b5 {[%clk 0:01:12]} 23. Bb3 {[%clk 0:02:07]}  Rad8 {[%clk 0:01:13]} 24. Qg3 {[%clk 0:02:00]}  Qf4 {[%clk 0:01:06]} 25. Nxe5 {[%clk 0:01:56]}  Qxg3 {[%clk 0:01:05]} 26. fxg3 {[%clk 0:01:57]}  Re7 {[%clk 0:00:45]} 27. Rf2 {[%clk 0:01:55]}  Nd7 {[%clk 0:00:41]} 28. Ng6 {[%clk 0:01:54]}  Ree8 {[%clk 0:00:39]} 29. Kh2 {[%clk 0:01:47]}  Nf6 {[%clk 0:00:35]} 30. Re2 {[%clk 0:01:45]}  Nxh5 {[%clk 0:00:33]} 31. e5 {[%clk 0:01:44]}  Rd3 {[%clk 0:00:26]} 32. Rf2 {[%clk 0:01:38]}  Nxg3 {[%clk 0:00:21]} 33. Nf4 {[%clk 0:01:18]}  Re3 {[%clk 0:00:19]} 34. Nxe6 {[%clk 0:01:18]}  Ne4 {[%clk 0:00:15]} 35. Rf4 {[%clk 0:01:05]}  Kh8 {[%clk 0:00:15]} 36. Nf8 {[%clk 0:00:58]}  Nc5 {[%clk 0:00:13]} 37. Ng6+ {[%clk 0:00:53]}  Kh7 {[%clk 0:00:13]} 38. Bc2 {[%clk 0:00:54]}  Nd3 {[%clk 0:00:13]} 39. Rg4 {[%clk 0:00:50]}  h5 {[%clk 0:00:10]} 40. Rg5 {[%clk 0:00:48]}  Kh6 {[%clk 0:00:10]} 41. Rg3 {[%clk 0:00:44]}  Rxg3 {[%clk 0:00:10]} 42. Kxg3 {[%clk 0:00:45]}  Kxg6 {[%clk 0:00:09]} 43. Bxd3+ {[%clk 0:00:45]}  Kg5 {[%clk 0:00:09]} 44. Kf3 {[%clk 0:00:42]}  Rxe5 {[%clk 0:00:10]} 45. Bc2 {[%clk 0:00:42]}  Re1 {[%clk 0:00:10]} 46. Bd3 {[%clk 0:00:41]}  Re7 {[%clk 0:00:09]} 47. Kf2 {[%clk 0:00:40]}  Kf6 {[%clk 0:00:09]} 48. Bc2 {[%clk 0:00:39]}  g5 {[%clk 0:00:09]} 49. Bd1 {[%clk 0:00:39]}  g4 {[%clk 0:00:09]} 50. a4 {[%clk 0:00:37]}  bxa4 {[%clk 0:00:08]} 51. Bxa4 {[%clk 0:00:38]}  Kg5 {[%clk 0:00:08]} 52. Bc2 {[%clk 0:00:28]}  h4 {[%clk 0:00:09]} 53. Bd1 {[%clk 0:00:28]}  Kf4 {[%clk 0:00:09]} 54. Kf1 {[%clk 0:00:26]}  g3 {[%clk 0:00:09]} 55. Bb3 {[%clk 0:00:21]}  Re5 {[%clk 0:00:07]} 56. Bc4 {[%clk 0:00:21]}  Ra5 {[%clk 0:00:05]} 57. Ke2 {[%clk 0:00:18]}  Ra1 {[%clk 0:00:06]} 58. Be6 {[%clk 0:00:18]}  Rh1 {[%clk 0:00:06]} 59. b4 {[%clk 0:00:16]}  Rc1 {[%clk 0:00:05]} 60. Kd2 {[%clk 0:00:16]}  Rg1 {[%clk 0:00:05]} 61. Bh3 {[%clk 0:00:16]}  b6 {[%clk 0:00:05]} 62. Ke2 {[%clk 0:00:15]}  c5 {[%clk 0:00:06]} 63. bxc5 {[%clk 0:00:15]}  bxc5 {[%clk 0:00:07]} 64. Kd2 {[%clk 0:00:13]}  Rh1 {[%clk 0:00:07]} 65. Bd7 {[%clk 0:00:07]}  h3 {[%clk 0:00:07]} 0-1


[Site "https://www.chess.com"]

[Event "Titled Tuesday Blitz May 9 Late 2023"]
[White "Erzhanov, Arman"]
[Black "Averjanov, Alexey"]
[WhiteFideId "4138821"]
[BlackFideId "14109867"]
[WhiteElo "2138"]
[BlackElo "2704"]
[Result "0-1"]
[Round "09"]
[TimeControl "180+2"]
[Date "2023.05.09"]
[WhiteClock "0:00:00"]
[BlackClock "0:00:38"]

1. e4 {[%clk 0:02:59]}  c6 {[%clk 0:03:00]} 2. d4 {[%clk 0:02:58]}  d5 {[%clk 0:03:01]} 3. exd5 {[%clk 0:02:58]}  cxd5 {[%clk 0:03:01]} 4. c4 {[%clk 0:02:59]}  Nf6 {[%clk 0:03:01]} 5. Nc3 {[%clk 0:02:59]}  e6 {[%clk 0:03:01]} 6. c5 {[%clk 0:02:58]}  Be7 {[%clk 0:03:02]} 7. Nf3 {[%clk 0:02:58]}  O-O {[%clk 0:03:03]} 8. Qc2 {[%clk 0:02:58]}  b6 {[%clk 0:03:03]} 9. b4 {[%clk 0:02:58]}  a5 {[%clk 0:03:03]} 10. Na4 {[%clk 0:02:57]}  axb4 {[%clk 0:03:03]} 11. Nxb6 {[%clk 0:02:57]}  Ra5 {[%clk 0:03:04]} 12. Bd3 {[%clk 0:02:52]}  Nc6 {[%clk 0:03:03]} 13. Bb2 {[%clk 0:02:40]}  e5 {[%clk 0:02:43]} 14. Nxc8 {[%clk 0:02:38]}  Qxc8 {[%clk 0:02:23]} 15. dxe5 {[%clk 0:02:21]}  Rxc5 {[%clk 0:02:21]} 16. Qe2 {[%clk 0:02:12]}  Nh5 {[%clk 0:02:08]} 17. O-O {[%clk 0:01:34]}  Nf4 {[%clk 0:02:08]} 18. Qd2 {[%clk 0:01:35]}  Qg4 {[%clk 0:02:02]} 19. Ne1 {[%clk 0:01:28]}  d4 {[%clk 0:01:41]} 20. f3 {[%clk 0:01:07]}  Qg5 {[%clk 0:01:37]} 21. Bc1 {[%clk 0:01:01]}  Rxc1 {[%clk 0:01:21]} 22. Qxc1 {[%clk 0:00:54]}  Nxe5 {[%clk 0:01:21]} 23. Qc2 {[%clk 0:00:36]}  Bd6 {[%clk 0:01:09]} 24. Rd1 {[%clk 0:00:26]}  Qh6 {[%clk 0:00:50]} 25. Be4 {[%clk 0:00:16]}  d3 {[%clk 0:00:42]} 26. Qf2 {[%clk 0:00:15]}  Ne2+ {[%clk 0:00:39]} 27. Kh1 {[%clk 0:00:00]}  Ng4 {[%clk 0:00:38]} 0-1


[Site "https://www.chess.com"]

[Event "Titled Tuesday Blitz May 9 Late 2023"]
[White "Arabidze, Meri"]
[Black "Sreyas Payyappat"]
[WhiteFideId "13604040"]
[BlackFideId "46674969"]
[WhiteElo "2405"]
[BlackElo "2043"]
[Result "1-0"]
[Round "09"]
[TimeControl "180+2"]
[Date "2023.05.09"]
[WhiteClock "0:00:39"]
[BlackClock "0:00:13"]

1. d4 {[%clk 0:03:00]}  Nf6 {[%clk 0:02:59]} 2. c4 {[%clk 0:03:01]}  c5 {[%clk 0:02:58]} 3. d5 {[%clk 0:03:01]}  e6 {[%clk 0:02:58]} 4. Nc3 {[%clk 0:03:00]}  exd5 {[%clk 0:02:59]} 5. cxd5 {[%clk 0:03:01]}  d6 {[%clk 0:02:59]} 6. e4 {[%clk 0:03:01]}  g6 {[%clk 0:02:58]} 7. Nge2 {[%clk 0:03:01]}  Bg7 {[%clk 0:02:56]} 8. Ng3 {[%clk 0:03:02]}  O-O {[%clk 0:02:56]} 9. Be2 {[%clk 0:03:02]}  Re8 {[%clk 0:02:56]} 10. f3 {[%clk 0:02:57]}  Nbd7 {[%clk 0:02:52]} 11. O-O {[%clk 0:02:56]}  Rb8 {[%clk 0:02:50]} 12. a4 {[%clk 0:02:55]}  a6 {[%clk 0:02:48]} 13. Bg5 {[%clk 0:02:28]}  h6 {[%clk 0:02:24]} 14. Bf4 {[%clk 0:02:28]}  Qb6 {[%clk 0:02:02]} 15. Qd2 {[%clk 0:02:22]}  g5 {[%clk 0:02:00]} 16. Be3 {[%clk 0:02:15]}  Ne5 {[%clk 0:01:58]} 17. Kh1 {[%clk 0:02:09]}  Ng6 {[%clk 0:01:47]} 18. a5 {[%clk 0:01:57]}  Qc7 {[%clk 0:01:44]} 19. Na4 {[%clk 0:01:57]}  Bd7 {[%clk 0:01:31]} 20. Nb6 {[%clk 0:01:56]}  Bb5 {[%clk 0:01:27]} 21. Nf5 {[%clk 0:01:49]}  Re5 {[%clk 0:01:10]} 22. Nxg7 {[%clk 0:01:38]}  Kxg7 {[%clk 0:01:11]} 23. Rac1 {[%clk 0:01:16]}  Rbe8 {[%clk 0:01:08]} 24. b4 {[%clk 0:01:12]}  Bxe2 {[%clk 0:01:01]} 25. Qxe2 {[%clk 0:01:13]}  Nxe4 {[%clk 0:00:59]} 26. fxe4 {[%clk 0:01:11]}  Rxe4 {[%clk 0:01:00]} 27. Qb2+ {[%clk 0:01:11]}  Kg8 {[%clk 0:00:56]} 28. Bg1 {[%clk 0:01:05]}  Qd7 {[%clk 0:00:53]} 29. bxc5 {[%clk 0:01:03]}  Re2 {[%clk 0:00:47]} 30. Qd4 {[%clk 0:00:57]}  Nh4 {[%clk 0:00:39]} 31. c6 {[%clk 0:00:47]}  bxc6 {[%clk 0:00:30]} 32. dxc6 {[%clk 0:00:48]}  Qc7 {[%clk 0:00:27]} 33. Nd5 {[%clk 0:00:44]}  Qc8 {[%clk 0:00:15]} 34. Nf6+ {[%clk 0:00:44]}  Kf8 {[%clk 0:00:15]} 35. Nxe8 {[%clk 0:00:41]}  Rxe8 {[%clk 0:00:15]} 36. Qh8+ {[%clk 0:00:38]}  Ke7 {[%clk 0:00:13]} 37. Rce1+ {[%clk 0:00:39]} 1-0


[Site "https://www.chess.com"]

[Event "Titled Tuesday Blitz May 9 Late 2023"]
[White "Rodriguez Fontecha, Marcos"]
[Black "benny_aizenberg"]
[WhiteFideId "2256576"]
[WhiteElo "2249"]
[BlackElo "2651"]
[Result "0-1"]
[Round "09"]
[TimeControl "180+2"]
[Date "2023.05.09"]
[WhiteClock "0:00:02"]
[BlackClock "0:00:25"]

1. Nf3 {[%clk 0:02:53]}  c5 {[%clk 0:02:59]} 2. d4 {[%clk 0:02:52]}  cxd4 {[%clk 0:02:58]} 3. Qxd4 {[%clk 0:02:53]}  Nc6 {[%clk 0:02:58]} 4. Qh4 {[%clk 0:02:53]}  Nf6 {[%clk 0:02:55]} 5. Nc3 {[%clk 0:02:53]}  d5 {[%clk 0:02:55]} 6. Bg5 {[%clk 0:02:52]}  e6 {[%clk 0:02:53]} 7. O-O-O {[%clk 0:02:52]}  Be7 {[%clk 0:02:53]} 8. e4 {[%clk 0:02:52]}  h6 {[%clk 0:02:44]} 9. exd5 {[%clk 0:02:52]}  exd5 {[%clk 0:02:42]} 10. Bd3 {[%clk 0:02:52]}  Be6 {[%clk 0:02:40]} 11. Rhe1 {[%clk 0:02:48]}  O-O {[%clk 0:02:35]} 12. Bxh6 {[%clk 0:02:45]}  gxh6 {[%clk 0:02:35]} 13. Qxh6 {[%clk 0:02:44]}  Re8 {[%clk 0:02:19]} 14. Ng5 {[%clk 0:02:41]}  Bf8 {[%clk 0:02:19]} 15. Bh7+ {[%clk 0:02:26]}  Kh8 {[%clk 0:02:19]} 16. Qh4 {[%clk 0:02:26]}  Kg7 {[%clk 0:02:07]} 17. Re3 {[%clk 0:02:03]}  Bd6 {[%clk 0:01:59]} 18. Rde1 {[%clk 0:01:48]}  d4 {[%clk 0:01:44]} 19. Rxe6 {[%clk 0:01:46]}  fxe6 {[%clk 0:01:42]} 20. Nce4 {[%clk 0:01:06]}  Nxe4 {[%clk 0:00:44]} 21. Rxe4 {[%clk 0:01:06]}  Qf6 {[%clk 0:00:39]} 22. Rg4 {[%clk 0:00:58]}  Kf8 {[%clk 0:00:39]} 23. Bd3 {[%clk 0:00:26]}  Ke7 {[%clk 0:00:35]} 24. Qh7+ {[%clk 0:00:26]}  Kd8 {[%clk 0:00:34]} 25. Nf7+ {[%clk 0:00:27]}  Kc7 {[%clk 0:00:34]} 26. Nxd6+ {[%clk 0:00:09]}  Kxd6 {[%clk 0:00:34]} 27. Rg7 {[%clk 0:00:08]}  Re7 {[%clk 0:00:34]} 28. Rxe7 {[%clk 0:00:06]}  Nxe7 {[%clk 0:00:34]} 29. f3 {[%clk 0:00:06]}  Rh8 {[%clk 0:00:30]} 30. Qe4 {[%clk 0:00:05]}  Nd5 {[%clk 0:00:30]} 31. c4 {[%clk 0:00:04]}  Qf4+ {[%clk 0:00:29]} 32. Kd1 {[%clk 0:00:02]}  Qxe4 {[%clk 0:00:28]} 33. Bxe4 {[%clk 0:00:03]}  Ne3+ {[%clk 0:00:29]} 34. Ke2 {[%clk 0:00:03]}  Nxg2 {[%clk 0:00:29]} 35. Bxb7 {[%clk 0:00:02]}  Rxh2 {[%clk 0:00:28]} 36. Kd3 {[%clk 0:00:03]}  e5 {[%clk 0:00:28]} 37. b4 {[%clk 0:00:03]}  Nf4+ {[%clk 0:00:25]} 38. Ke4 {[%clk 0:00:04]}  Ke6 {[%clk 0:00:25]} 39. Bc8+ {[%clk 0:00:02]}  Kf6 {[%clk 0:00:25]} 40. c5 {[%clk 0:00:02]}  Re2# {[%clk 0:00:25]} 0-1


[Site "https://www.chess.com"]

[Event "Titled Tuesday Blitz May 9 Late 2023"]
[White "Guz, Ari"]
[Black "TimGrutter03"]
[WhiteFideId "2825759"]
[WhiteElo "2205"]
[BlackElo "2622"]
[Result "0-1"]
[Round "09"]
[TimeControl "180+2"]
[Date "2023.05.09"]
[WhiteClock "0:00:33"]
[BlackClock "0:00:09"]

1. b3 {[%clk 0:03:00]}  e5 {[%clk 0:02:55]} 2. Bb2 {[%clk 0:02:56]}  Nc6 {[%clk 0:02:55]} 3. e3 {[%clk 0:02:56]}  g6 {[%clk 0:02:53]} 4. d4 {[%clk 0:02:55]}  Bg7 {[%clk 0:02:51]} 5. Nf3 {[%clk 0:02:53]}  e4 {[%clk 0:02:49]} 6. Nfd2 {[%clk 0:02:53]}  f5 {[%clk 0:02:48]} 7. c4 {[%clk 0:02:51]}  Nge7 {[%clk 0:02:45]} 8. Nc3 {[%clk 0:02:51]}  O-O {[%clk 0:02:42]} 9. f3 {[%clk 0:02:51]}  exf3 {[%clk 0:02:41]} 10. Qxf3 {[%clk 0:02:52]}  a5 {[%clk 0:02:25]} 11. O-O-O {[%clk 0:02:50]}  a4 {[%clk 0:02:20]} 12. Nxa4 {[%clk 0:02:39]}  Kh8 {[%clk 0:02:11]} 13. Nc3 {[%clk 0:02:32]}  b6 {[%clk 0:02:03]} 14. h4 {[%clk 0:02:29]}  Bb7 {[%clk 0:01:59]} 15. h5 {[%clk 0:02:26]}  g5 {[%clk 0:01:59]} 16. h6 {[%clk 0:02:25]}  Bf6 {[%clk 0:01:59]} 17. d5 {[%clk 0:02:17]}  Ne5 {[%clk 0:01:56]} 18. Qg3 {[%clk 0:02:13]}  N7g6 {[%clk 0:01:43]} 19. Nf3 {[%clk 0:02:06]}  Nxf3 {[%clk 0:01:41]} 20. gxf3 {[%clk 0:02:07]}  Qe7 {[%clk 0:01:36]} 21. Bd3 {[%clk 0:01:54]}  Qxe3+ {[%clk 0:01:24]} 22. Kb1 {[%clk 0:01:54]}  Be5 {[%clk 0:01:20]} 23. Qg2 {[%clk 0:01:38]}  Nh4 {[%clk 0:00:58]} 24. Rxh4 {[%clk 0:01:06]}  gxh4 {[%clk 0:00:59]} 25. Ne4 {[%clk 0:01:06]}  Qf4 {[%clk 0:00:32]} 26. Qg5 {[%clk 0:01:06]}  Qh2 {[%clk 0:00:14]} 27. Rd2 {[%clk 0:00:46]}  Qh1+ {[%clk 0:00:12]} 28. Kc2 {[%clk 0:00:46]}  Bxb2 {[%clk 0:00:12]} 29. Kxb2 {[%clk 0:00:35]}  Rxa2+ {[%clk 0:00:08]} 30. Kxa2 {[%clk 0:00:35]}  Ra8+ {[%clk 0:00:08]} 31. Kb2 {[%clk 0:00:33]}  Qa1+ {[%clk 0:00:09]} 32. Kc2 {[%clk 0:00:33]}  Ra2# {[%clk 0:00:09]} 0-1


[Site "https://www.chess.com"]

[Event "Titled Tuesday Blitz May 9 Late 2023"]
[White "Martinez, Shawn"]
[Black "Kuznetsov, Felix"]
[WhiteFideId "2039770"]
[BlackFideId "34147990"]
[WhiteElo "2174"]
[BlackElo "2281"]
[Result "1-0"]
[Round "09"]
[TimeControl "180+2"]
[Date "2023.05.09"]
[WhiteClock "0:00:04"]
[BlackClock "0:00:03"]

1. e4 {[%clk 0:02:29]}  c5 {[%clk 0:03:00]} 2. Nc3 {[%clk 0:02:28]}  d6 {[%clk 0:02:59]} 3. Bb5+ {[%clk 0:02:26]}  Bd7 {[%clk 0:02:58]} 4. a4 {[%clk 0:02:24]}  g6 {[%clk 0:02:57]} 5. f4 {[%clk 0:02:22]}  Bg7 {[%clk 0:02:57]} 6. Nf3 {[%clk 0:02:22]}  Nc6 {[%clk 0:02:52]} 7. O-O {[%clk 0:02:18]}  e6 {[%clk 0:02:52]} 8. d3 {[%clk 0:02:12]}  Nge7 {[%clk 0:02:51]} 9. Qe1 {[%clk 0:02:01]}  O-O {[%clk 0:02:50]} 10. Bd2 {[%clk 0:01:51]}  Nd4 {[%clk 0:02:49]} 11. Nxd4 {[%clk 0:01:31]}  cxd4 {[%clk 0:02:46]} 12. Ne2 {[%clk 0:01:28]}  Bxb5 {[%clk 0:02:38]} 13. axb5 {[%clk 0:01:29]}  Qb6 {[%clk 0:02:36]} 14. Qh4 {[%clk 0:01:24]}  Rfe8 {[%clk 0:02:11]} 15. f5 {[%clk 0:01:06]}  gxf5 {[%clk 0:02:11]} 16. Bg5 {[%clk 0:00:52]}  Ng6 {[%clk 0:02:11]} 17. Qh5 {[%clk 0:00:48]}  fxe4 {[%clk 0:02:11]} 18. Rxf7 {[%clk 0:00:31]}  Kxf7 {[%clk 0:02:07]} 19. Qxh7 {[%clk 0:00:30]}  Ne7 {[%clk 0:01:45]} 20. Rf1+ {[%clk 0:00:17]}  Nf5 {[%clk 0:01:44]} 21. Nf4 {[%clk 0:00:17]}  Qc7 {[%clk 0:01:15]} 22. Nh5 {[%clk 0:00:16]}  Kf8 {[%clk 0:00:39]} 23. Bh6 {[%clk 0:00:07]}  Qf7 {[%clk 0:00:31]} 24. Bxg7+ {[%clk 0:00:06]}  Ke7 {[%clk 0:00:31]} 25. dxe4 {[%clk 0:00:06]}  Rh8 {[%clk 0:00:18]} 26. Bf6+ {[%clk 0:00:04]}  Ke8 {[%clk 0:00:11]} 27. Qxh8+ {[%clk 0:00:04]}  Kd7 {[%clk 0:00:11]} 28. Qxa8 {[%clk 0:00:02]}  Kc7 {[%clk 0:00:10]} 29. Qxa7 {[%clk 0:00:02]}  Ne3 {[%clk 0:00:08]} 30. Qa5+ {[%clk 0:00:02]}  Kb8 {[%clk 0:00:04]} 31. Qd8+ {[%clk 0:00:01]}  Ka7 {[%clk 0:00:04]} 32. Qa5+ {[%clk 0:00:02]}  Kb8 {[%clk 0:00:04]} 33. b6 {[%clk 0:00:02]}  Qg6 {[%clk 0:00:01]} 34. Qa7+ {[%clk 0:00:03]}  Kc8 {[%clk 0:00:01]} 35. Qa8+ {[%clk 0:00:03]}  Kd7 {[%clk 0:00:02]} 36. Qxb7+ {[%clk 0:00:04]}  Ke8 {[%clk 0:00:03]} 37. Qe7# {[%clk 0:00:04]} 1-0


[Site "https://www.chess.com"]

[Event "Titled Tuesday Blitz May 9 Late 2023"]
[White "Tologon tegin, Semetei"]
[Black "Gorshtein, Ido"]
[WhiteFideId "13800574"]
[BlackFideId "2815532"]
[WhiteElo "2247"]
[BlackElo "2415"]
[Result "1-0"]
[Round "09"]
[TimeControl "180+2"]
[Date "2023.05.09"]
[WhiteClock "0:00:56"]
[BlackClock "0:01:22"]

1. Nf3 {[%clk 0:03:00]}  c5 {[%clk 0:02:59]} 2. e3 {[%clk 0:03:01]}  Nc6 {[%clk 0:02:58]} 3. d4 {[%clk 0:02:59]}  cxd4 {[%clk 0:02:59]} 4. exd4 {[%clk 0:02:59]}  d5 {[%clk 0:02:59]} 5. h3 {[%clk 0:02:57]}  Bf5 {[%clk 0:02:58]} 6. Bd3 {[%clk 0:02:57]}  Bg6 {[%clk 0:02:57]} 7. O-O {[%clk 0:02:56]}  e6 {[%clk 0:02:56]} 8. c3 {[%clk 0:02:50]}  Bd6 {[%clk 0:02:55]} 9. Re1 {[%clk 0:02:48]}  Nge7 {[%clk 0:02:55]} 10. Bg5 {[%clk 0:02:48]}  f6 {[%clk 0:02:51]} 11. Bh4 {[%clk 0:02:43]}  Bf7 {[%clk 0:02:49]} 12. Nbd2 {[%clk 0:02:41]}  Qc7 {[%clk 0:02:44]} 13. Nf1 {[%clk 0:02:38]}  O-O-O {[%clk 0:02:29]} 14. b4 {[%clk 0:02:33]}  g5 {[%clk 0:02:28]} 15. Bg3 {[%clk 0:02:33]}  h5 {[%clk 0:02:29]} 16. N3d2 {[%clk 0:01:40]}  Rdg8 {[%clk 0:02:23]} 17. Bxd6 {[%clk 0:01:24]}  Qxd6 {[%clk 0:02:22]} 18. b5 {[%clk 0:01:25]}  Na5 {[%clk 0:02:12]} 19. Qa4 {[%clk 0:01:22]}  b6 {[%clk 0:02:11]} 20. Nb3 {[%clk 0:01:20]}  Kd8 {[%clk 0:01:49]} 21. Nxa5 {[%clk 0:01:19]}  bxa5 {[%clk 0:01:50]} 22. Qxa5+ {[%clk 0:01:19]}  Ke8 {[%clk 0:01:46]} 23. Qxa7 {[%clk 0:01:18]}  Kf8 {[%clk 0:01:46]} 24. Qc5 {[%clk 0:01:16]}  Qd7 {[%clk 0:01:46]} 25. b6 {[%clk 0:01:09]}  h4 {[%clk 0:01:42]} 26. Ne3 {[%clk 0:01:03]}  Kg7 {[%clk 0:01:41]} 27. a4 {[%clk 0:01:01]}  Ng6 {[%clk 0:01:39]} 28. Bxg6 {[%clk 0:00:59]}  Bxg6 {[%clk 0:01:37]} 29. a5 {[%clk 0:00:58]}  Rc8 {[%clk 0:01:34]} 30. Qb4 {[%clk 0:00:58]}  f5 {[%clk 0:01:22]} 31. b7 {[%clk 0:00:56]} 1-0


[Site "https://www.chess.com"]